Cogmind - Beta 15 @@@ ROGUE MODE // 2025.10.10 @ 12:11:16 Player: beans Result: Destroyed by DAS Turret with DAS Cannon Performance ------------- Evolutions (1) 500 Regions Visited (5) 1000 Robots Destroyed (37) 185 Value Destroyed (817) 817 Prototype IDs (0) 0 Alien Tech Used (0) 0 Bonus (297) 297 TOTAL SCORE: 2799 Bonus ------- Follower Combat Kills 389 Friendly Fire -92 Cogmind --------- Core Integrity 0/400 Matter 110/300 Energy 100/100 System Corruption 0% Temperature Cool (0) Movement Core (50) Location -9/Exiles Parts ------- > --- POWER (1) -------- (None) > --- PROPULSION (2) --- (None) > --- UTILITY (2) ------ (None) > --- WEAPON (4) ------- (None) > --- INVENTORY (5) ---- Ion Engine Reinforced Ion Engine Light Armor Plating Light Armor Plating Rocket Launcher Peak State ------------ > --- POWER ------------ Ion Engine > --- PROPULSION ------- Light Treads Light Treads > --- UTILITY ---------- Large Storage Unit Light Armor Plating > --- WEAPON ----------- Light Assault Rifle Light Assault Rifle Heavy Assault Rifle Light Cannon > --- INVENTORY -------- Ion Engine Reinforced Ion Engine Light Treads Light Armor Plating Light Armor Plating Light Assault Rifle Light Assault Rifle Rocket Launcher [Rating: 11] Favorites ----------- Power Ion Engine Engine Ion Engine Propulsion Light Treads Treads Light Treads Utility Large Storage Unit Storage Large Storage Unit Processor Targeting Computer Protection Light Armor Plating Weapon Light Assault Rifle Ballistic Gun Light Assault Rifle Ballistic Cannon Light Cannon Launcher Grenade Launcher Build | -11 -10 -10 -9 -9 -9 ------- Run | Yrd Mat Min Mat Min Exi Slots Evolved 2 | . . . 2 . . Power . | . . . . . . Propulsion . | . . . . . . Utility . | . . . . . . Weapon 2 | . . . 2 . . Parts Attached 25 | 3 6 7 3 3 3 Power 1 | . . 1 . . . Engine 1 | . . 1 . . . Core . | . . . . . . Reactor . | . . . . . . Propulsion 5 | 2 . 2 . 1 . Treads 5 | 2 . 2 . 1 . Leg . | . . . . . . Wheel . | . . . . . . Hover . | . . . . . . Flight . | . . . . . . Utility 4 | . 2 1 . 1 . Device . | . . . . . . Storage 1 | . 1 . . . . Processor 1 | . 1 . . . . Hackware . | . . . . . . Protection 2 | . . 1 . 1 . Artifact . | . . . . . . Weapon 15 | 1 4 3 3 1 3 Energy Gun . | . . . . . . Energy Cannon . | . . . . . . Ballistic Gun 11 | 1 2 2 3 1 2 Ballistic Cannon 1 | . . 1 . . . Launcher 3 | . 2 . . . 1 Special Weapon . | . . . . . . Impact Weapon . | . . . . . . Slashing Weapon . | . . . . . . Piercing Weapon . | . . . . . . Special Melee Weapon . | . . . . . . Unidentified Prototypes . | . . . . . . Parts Lost 23 | . 6 2 . 3 12 Power 1 | . . . . . 1 Propulsion 5 | . 1 1 . 1 2 Utility 3 | . 1 . . 1 1 Weapon 14 | . 4 1 . 1 8 Highest Loss Streak 11 | . 4 1 . 2 11 To Critical Strikes 5 | . . . . . 5 Average Backups 7 | . 4 6 7 9 9 Power 1 | . . 1 1 2 2 Propulsion 1 | . 2 1 1 . . Utility 1 | . 1 2 2 2 2 Weapon 2 | . . 2 2 4 4 Tool/Special . | . . . . . . Unused Backups 4 | . . . . . 4 Power 2 | . . . . . 2 Propulsion . | . . . . . . Utility 2 | . . . . . 2 Weapon . | . . . . . . Tool/Special . | . . . . . . Average Slot Usage (%) 87 | . 71 96 98 95 79 Engine 8 | . . 13 11 11 8 Treads 21 | . 27 26 22 18 9 Storage 11 | . 12 14 11 11 10 Processor 1 | . 7 . . . . Protection 8 | . . 13 11 10 10 Ballistic Gun 28 | . 17 16 31 36 40 Ballistic Cannon 5 | . . 9 11 7 . Launcher 1 | . 4 . . . . Peak Build Rating 11 | 3 6 7 11 11 11 Average Rating 8 | 2 5 6 9 10 9 On Entrance 5 | . 3 3 7 11 10 Naked Turns 17 | . . . . . 17 Heaviest Build 36 | 1 24 32 36 36 35 Greatest Support 40 | 40 40 40 40 40 20 Greatest Overweight (x) 1 | . 1 1 . 1 1 Average Overweight (x) . | . . . . . . Largest Inventory Capacity 15 | 5 15 15 15 15 15 Average Capacity 14 | 5 14 15 15 15 14 Most Carried 12 | 2 9 8 8 12 10 Average Carried 7 | . 4 6 7 9 9 Final Capacity 15 | 5 15 15 15 15 5 Final Carried 10 | . 8 8 8 10 5 Class Distribution -------------------- 55% | Scavenger-Tank 44% | Mutant Dominant Class ---------------- Mutant | -10/Materials Mutant | -10/Mines Scavenger-Tank | -9/Materials Scavenger-Tank | -9/Mines Scavenger-Tank | -9/Exiles Resources | -11 -10 -10 -9 -9 -9 ----------- Run | Yrd Mat Min Mat Min Exi Matter Collected 1046 | 215 275 105 238 167 46 Remotely . | . . . . . . Salvage Created 1119 | . 531 56 341 187 4 Parts 81 | . 34 7 24 16 . Haulers Intercepted 3 | . 1 . 2 . . Recyclers Shooed 2 | . . 1 1 . . Parts Field Recycled . | . . . . . . Retrieved Matter . | . . . . . . Parts Self-Destructed . | . . . . . . Prevented . | . . . . . . Kills | -11 -10 -10 -9 -9 -9 ------- Run | Yrd Mat Min Mat Min Exi Combat Hostiles Destroyed 35 | . 14 4 6 6 5 Guns 16 | . 7 3 2 4 . Cannons 7 | . . 1 4 2 . AOE 12 | . 7 . . . 5 Classes Destroyed 10 | . 5 . 2 2 1 Builder 1 | . 1 . . . . Hauler 3 | . 1 . 2 . . Recycler 3 | . 2 . 1 . . Swarmer 14 | . 6 4 3 1 . Grunt 11 | . 8 . . 3 . Brawler 1 | . . . 1 . . Duelist 1 | . . . . 1 . Protector 1 | . . . . 1 . Sentry 2 | . . . 2 . . Assembled 5 | . . . . . 5 Best Kill Streak 5 | . 3 2 5 3 5 Combat Bots Only 5 | . 3 2 3 3 5 Max Kills in Single Turn 3 | . 2 1 1 1 3 Gunslinging . | . . . . . . Exploded 3 | . 2 . . . 3 Melee . | . . . . . . Uniques/NPCs Destroyed . | . . . . . . Combat | -11 -10 -10 -9 -9 -9 -------- Run | Yrd Mat Min Mat Min Exi Hostile Shots Fired 236 | . 52 57 19 33 75 Missed 75 | . 17 19 11 4 24 Hits 161 | . 35 38 8 29 51 Melee 5 | . . . . 5 . Projectile 156 | . 35 38 8 24 51 Critical Strikes 25 | . 2 . . 4 19 Actively Blocked 3 | . . . . 1 2 Damage Taken 2763 | . 801 307 127 515 1013 Core 651 | . 101 94 16 101 339 Absorbed by Shields . | . . . . . . Redirected to Shielding 42 | . . . . 23 19 Core Remaining (%) 61 | 100 . 22 . . . Volleys Fired 159 | . 55 25 27 20 32 Largest 4 | . 2 2 4 4 4 Hottest 93 | . 50 50 93 93 84 Shots Fired 391 | . 86 28 108 79 90 Gun 326 | . 70 26 81 68 81 Cannon 40 | . . 2 27 11 . Launcher 25 | . 16 . . . 9 Special . | . . . . . . Kinetic 366 | . 70 28 108 79 81 Thermal . | . . . . . . Explosive 25 | . 16 . . . 9 Electromagnetic . | . . . . . . Robot Hit Streak 12 | . 7 4 9 12 6 Robot Miss Streak 9 | . 2 9 5 5 3 Penetration Max . | . . . . . . Secondary Targets 1 | . . . . 1 . Max Gunslinging Chain 1 | . . . . 1 . Shots Hit Robots 220 | . 46 12 56 48 58 Core Hits 94 | . 33 7 19 16 19 Critical Kills 1 | . 1 . . . . Critical Parts Destroyed . | . . . . . . Critical Strikes 2 | . 1 . . 1 . Destroy 1 | . 1 . . . . Blast 1 | . . . . 1 . Melee Attacks . | . . . . . . Impact . | . . . . . . Slashing . | . . . . . . Piercing . | . . . . . . Sneak Attacks . | . . . . . . Combat Hostiles . | . . . . . . Follow-up Attacks . | . . . . . . Damage Inflicted 3282 | . 1051 105 652 578 896 Guns 1626 | . 299 85 387 408 447 Cannons 455 | . . 20 265 170 . Explosions 1199 | . 750 . . . 449 Melee . | . . . . . . Ramming 2 | . 2 . . . . Kinetic 2081 | . 299 105 652 578 447 Thermal 85 | . 85 . . . . Explosive 1114 | . 665 . . . 449 Electromagnetic . | . . . . . . Impact . | . . . . . . Slashing . | . . . . . . Piercing . | . . . . . . Highest Corruption 1 | . 1 1 . . . Average Corruption 1 | . 1 1 . . . Corruption Purged . | . . . . . . Corruption Blocked . | . . . . . . Effects 12 | . 5 7 . . . Message Errors 4 | . 1 3 . . . Matter Fused 1 | . . 1 . . . Heat Flow Errors 4 | . 2 2 . . . Energy Discharges 1 | . . 1 . . . Data Loss (minor) 2 | . 2 . . . . Overload Shots . | . . . . . . Overflow Damage 28 | . 24 . . . 4 Projectiles . | . . . . . . Explosions 28 | . 24 . . . 4 Melee . | . . . . . . Knockbacks 6 | . . . 3 3 . Impact . | . . . . . . Kinetic 6 | . . . 3 3 . Secondary . | . . . . . . Self-Inflicted Damage 201 | . 153 . . . 48 Shots 7 | . 6 . . . 1 Rammed 1 | . 1 . . . . Targets Rammed 1 | . 1 . . . . Kicked . | . . . . . . Crushed . | . . . . . . Highest Temperature 296 | . 101 296 182 191 56 Average Temperature 59 | . 34 97 57 70 19 Received Heat Transfer 547 | . 243 . 39 225 40 Effects 2 | . . 2 . . . Interference 2 | . . 2 . . . Siege Activations . | . . . . . . Martial Activations . | . . . . . . Shielding Activations . | . . . . . . Robots Disrupted . | . . . . . . Combat Hostiles . | . . . . . . Robots Corrupted . | . . . . . . Combat Hostiles . | . . . . . . Parts Fried . | . . . . . . Impact Corruptions . | . . . . . . Robots Melted . | . . . . . . Combat Hostiles . | . . . . . . Parts Melted . | . . . . . . Heat Transferred 50 | . 50 . . . . Parts Sabotaged . | . . . . . . Parts Stolen . | . . . . . . Parts Stripped . | . . . . . . Power Chain Reactions . | . . . . . . Alert | -11 -10 -10 -9 -9 -9 ------- Run | Yrd Mat Min Mat Min Exi Maximum Alert Level 1 | . 1 . 1 . . Low Security (%) 86 | 100 64 100 65 100 . Level 1 13 | . 35 . 34 . . Level 2 . | . . . . . . Level 3 . | . . . . . . Level 4 . | . . . . . . Level 5 . | . . . . . . High Security . | . . . . . . Max Security . | . . . . . . Peak Influence 292 | . 275 117 292 156 . Initial 105 | . . 87 . 105 . Average 82 | . 122 38 141 62 . Influence Increases 1551 | . 616 151 442 342 . Destroy 0b10 Robot/C 920 | . 280 120 280 240 . Destroy 0b10 Robot/NC 45 | . 20 . 20 5 . Destroy Leader 216 | . 72 20 84 40 . Allied During Kill 111 | . . 11 43 57 . Successful Hack 7 | . 7 . . . . Disable Machine 75 | . 75 . . . . Destroy Structure 162 | . 162 . . . . Lose Combat Pursuer 15 | . . . 15 . . Influence Decreases 1551 | . 391 376 170 530 84 Entered New Map 389 | . . 138 . 167 84 Time Decay 1012 | . 331 218 150 313 . Lost Part 110 | . 60 20 . 30 . Lost Ally 40 | . . . 20 20 . Squads Dispatched 7 | . 3 . 2 2 . Investigation 1 | . 1 . . . . Extermination . | . . . . . . Reinforcement 5 | . 2 . 2 1 . Assault 1 | . . . . 1 . Garrison . | . . . . . . Intercept . | . . . . . . Searches Triggered . | . . . . . . Construction Impeded 1 | . . . . 1 . Haulers Reinforced . | . . . . . . Active Scanning Responses . | . . . . . . Cargo Convoy Interrupts . | . . . . . . Stealth | -11 -10 -10 -9 -9 -9 --------- Run | Yrd Mat Min Mat Min Exi Distress Signals 3 | . 1 . 2 . . Communications Jammed . | . . . . . . Distress Signals . | . . . . . . Times Spotted 68 | . 21 6 20 13 8 Peak Tracking Total 9 | . 4 3 6 5 9 Tactical Retreats 1 | . . . 1 . . Traps | -11 -10 -10 -9 -9 -9 ------- Run | Yrd Mat Min Mat Min Exi Traps Triggered 1 | . 1 . . . . Indirectly . | . . . . . . Trap Hack Attempts . | . . . . . . Triggered . | . . . . . . Disarmed . | . . . . . . Reprogrammed . | . . . . . . Reused . | . . . . . . Traps Extracted . | . . . . . . Installed . | . . . . . . Triggered . | . . . . . . Machines | -11 -10 -10 -9 -9 -9 ---------- Run | Yrd Mat Min Mat Min Exi Machines Disabled 14 | . 5 . . . 9 Max in Single Turn 2 | . 2 . . . 2 Machines Repaired . | . . . . . . Machines Dismantled . | . . . . . . Machines Sabotaged . | . . . . . . Overloaded Fab Kills . | . . . . . . Hacking | -11 -10 -10 -9 -9 -9 --------- Run | Yrd Mat Min Mat Min Exi Machines Accessed 2 | . 1 1 . . . Terminals 2 | . 1 1 . . . Fabricators . | . . . . . . Repair Stations . | . . . . . . Recycling Units . | . . . . . . Scanalyzers . | . . . . . . Garrison Access . | . . . . . . Total Hacks 3 | . 2 1 . . . Successful 2 | . 1 1 . . . Failed 1 | . 1 . . . . Catastrophic . | . . . . . . Database Lockouts . | . . . . . . Manual . | . . . . . . Terminals 3 | . 2 1 . . . Fabricators . | . . . . . . Repair Stations . | . . . . . . Recycling Units . | . . . . . . Scanalyzers . | . . . . . . Garrison Access . | . . . . . . Terminal Hacks 2 | . 1 1 . . . Dispatch Records 1 | . . 1 . . . Assault Status 1 | . 1 . . . . Fabricator Hacks . | . . . . . . Repair Station Hacks . | . . . . . . Recycling Unit Hacks . | . . . . . . Scanalyzer . | . . . . . . Garrison Access Hacks . | . . . . . . Unauthorized Hacks . | . . . . . . Terminals . | . . . . . . Fabricators . | . . . . . . Repair Stations . | . . . . . . Recycling Units . | . . . . . . Scanalyzers . | . . . . . . Garrison Access . | . . . . . . Data Cores Recovered . | . . . . . . Used . | . . . . . . Hacking Detections 1 | . 1 . . . . Full Trace Events . | . . . . . . Feedback Events . | . . . . . . Feedback Blocked . | . . . . . . Robot Schematics Acquired . | . . . . . . Robots Built . | . . . . . . Authchips . | . . . . . . Time . | . . . . . . Total Robot Build Rating . | . . . . . . Part Schematics Acquired . | . . . . . . Parts Built . | . . . . . . Authchips . | . . . . . . Time . | . . . . . . Total Part Build Rating . | . . . . . . Parts Repaired . | . . . . . . Time . | . . . . . . Parts Recycled . | . . . . . . Recycled Matter . | . . . . . . Retrieved Matter . | . . . . . . Retrieved Components . | . . . . . . Parts Scanalyzed . | . . . . . . Part Schematics Acquired . | . . . . . . Parts Damaged . | . . . . . . Bothacking | -11 -10 -10 -9 -9 -9 ------------ Run | Yrd Mat Min Mat Min Exi Used RIF Installer . | . . . . . . Robots Hacked . | . . . . . . Non-combat . | . . . . . . Combat . | . . . . . . Robot Hacks Applied . | . . . . . . Relay Couplers Released . | . . . . . . Fabnet Peak Effective % . | . . . . . . Robots Rewired . | . . . . . . Allies Hacked . | . . . . . . Hacks Repelled . | . . . . . . Allies | -11 -10 -10 -9 -9 -9 -------- Run | Yrd Mat Min Mat Min Exi Total Allies 6 | . . 3 . 3 . Largest Group 4 | . . 3 3 4 3 Highest-Rated Group 92 | . . 40 40 92 76 Highest-Rated Ally 31 | . . 16 16 31 31 Total Orders . | . . . . . . Ally Attacks 93 | . . 4 49 30 10 Total Damage 1063 | . . 25 485 464 89 Kills 20 | . . 2 9 7 2 Allies Corrupted . | . . . . . . Allies Melted . | . . . . . . Intel | -11 -10 -10 -9 -9 -9 ------- Run | Yrd Mat Min Mat Min Exi Active Infowar (turns) . | . . . . . . Robot Analysis Total . | . . . . . . Derelict Logs Recovered 4 | . . 2 . 2 . Drone Launches . | . . . . . . Drone Recoveries . | . . . . . . Exploration | -11 -10 -10 -9 -9 -9 ------------- Run | Yrd Mat Min Mat Min Exi Turns Passed 3815 | 46 967 655 330 1300 517 Spaces Moved 1885 | 31 471 361 151 674 197 Core 40 | 8 . . . . 32 Treads 1845 | 23 471 361 151 674 165 Legs . | . . . . . . Wheels . | . . . . . . Hover . | . . . . . . Flight . | . . . . . . Fastest Speed 50 | 50 160 160 160 160 50 Average Speed 172 | 131 161 160 160 180 209 Slowest Speed 240 | 160 240 240 160 240 240 Overloaded Moves . | . . . . . . Propulsion Burnouts . | . . . . . . Robots Hopped . | . . . . . . Potential Cave-ins . | . . . . . . Cave-ins Triggered 1 | . 1 . . . . Exploration Rate (%) 59 | 4 87 96 21 97 52 Regions Visited 5 Branch Regions 3 Pre-discovered Areas 3 | . . 2 . 1 . Known Exits Taken 1 | . . 1 . . . Unknown Exits Taken 4 | 1 1 . 1 1 . Scrap Searched 3 | . . 1 . 2 . Spaces Dug . | . . . . . . Terrain Destroyed 206 | . 166 . . . 40 Melee . | . . . . . . Projectile . | . . . . . . AOE 206 | . 166 . . . 40 Terrain Rammed . | . . . . . . Walls Destroyed . | . . . . . . Machines Disabled . | . . . . . . Actions | -11 -10 -10 -9 -9 -9 --------- Run | Yrd Mat Min Mat Min Exi Total 2208 | 36 604 414 186 718 250 Wait 105 | . 57 16 4 17 11 Move 1880 | 30 470 360 150 673 197 Hop . | . . . . . . Pick Up 30 | 3 14 6 2 5 . Fast Attach . | . . . . . . Attach 26 | 3 6 6 2 3 6 Detach 1 | . . . . . 1 Swap 5 | . 1 1 1 . 2 Drop 1 | . . . . . 1 Fire 159 | . 55 25 27 20 32 Melee . | . . . . . . Ram . | . . . . . . Kick . | . . . . . . Crush 1 | . 1 . . . . Escape Stasis . | . . . . . . Rewire . | . . . . . . Trap . | . . . . . . Miscellaneous . | . . . . . . Route ------- -11/Scrapyard -10/Materials (discovered 4 exits: *Mat x3 / *Min) -10/Mines (discovered 2 exits: *Mat x2) -9/Materials (discovered 2 exits: [*Min x2]) -9/Mines (discovered 3 exits: [*Mat x2] / [*Exi]) -9/Exiles History --------- Turn | Location | Event 6 | -11/Scrapyard | Discovered new exit (range 15) 47 | -11/Scrapyard | Entered Materials 305 | -10/Materials | Build established: Mutant 352 | -10/Materials | Discovered new exit (range 16) 513 | -10/Materials | Discovered new exit (range 16) 639 | -10/Materials | Discovered new exit (range 15) 673 | -10/Materials | Crushed by falling debris 825 | -10/Materials | Discovered new exit (range 16) 1009 | -10/Materials | Lost 4 parts (1n1u2w) 1014 | -10/Materials | Entered Mines 1022 | -10/Mines | Core integrity fell below 50% 1102 | -10/Mines | Identified exit to Materials 1246 | -10/Mines | Received a Rocket Launcher from a helpful Derelict 1304 | -10/Mines | Assisted by bots powering up and referring to "LRC-V3" 1307 | -10/Mines | Learned location of Storage (-7) 1622 | -10/Mines | Discovered exit to Materials (range 9) 1669 | -10/Mines | Entered Materials 1669 | -9/Materials | Accompanied by 3 allies 1669 | -9/Materials | Evolved 2 slots: Weapon x2 1853 | -9/Materials | Discovered new exit (range 14) 1916 | -9/Materials | Discovered new exit (range 16) 1999 | -9/Materials | Entered Mines 1999 | -9/Mines | Accompanied by 1 ally 2004 | -9/Mines | Build established: Scavenger-Tank 2020 | -9/Mines | Learned location of Zion (-6) 2054 | -9/Mines | Discovered new exit (range 7) 2228 | -9/Mines | Discovered new exit (range 9) 2399 | -9/Mines | A weapon hastily lodged in a ceiling crevice suddenly fell to the ground 2648 | -9/Mines | Met a Derelict testing a Signal Generator 3276 | -9/Mines | Deemed a non-threat by the Exiles lab entrance 3276 | -9/Mines | Discovered new exit (range 5) 3299 | -9/Mines | Entered Exiles 3299 | -9/Exiles | Accompanied by 3 allies 3329 | -9/Exiles | Led the pair of lost Derelicts to a safe place 3374 | -9/Exiles | Met 8R-AWN 3408 | -9/Exiles | Met EX-HEX 3497 | -9/Exiles | Met EX-DEC 3640 | -9/Exiles | Attacked by the Exiles 3775 | -9/Exiles | Core integrity fell below 50% 3813 | -9/Exiles | Core integrity fell below 20% 3816 | -9/Exiles | Destroyed by DAS Turret with DAS Cannon Last Messages --------------- Destroyed Prototype Protection. Penetrated by HV Slug. Core Shielding destroyed. The unstable cave ceiling collapses. Penetrated by HV Slug. HV Slug penetrates Wall. Penetrated by HV Slug. Critical hit (Destroy). Lgt. Assault Rifle destroyed. Penetrated by HV Slug. Lgt. Assault Rifle destroyed. Dropped Lrg. Storage Unit. Acquired 45 matter. The unstable cave ceiling collapses. Penetrated by HV Slug. HV Slug penetrates Wall. Penetrated by HV Slug. HV Slug penetrates Wall. Penetrated by HV Slug. Machine disabled. Map ----- +----------------------------------------------------+ | ?????????????????????????????????????????????????? | | ?????????????????????????????????????????????????? | | ?????????????????????????????????????????????????? | | ?????????????????????????????????????????????????? | | ?????????????????????????????????????????????????? | | ?????????????????????????????????????????????????? | | ?????????????????????????????????????????????????? | | ?#######?????????????????????????????????????????? | | ?#!!! "#?????????????????????????????????????????? | | ?# #?????????????????????????????????????????? | | ?# "#?????????????????????????????????????????? | | ## ""#????????????##???????????????????????????? | | # ""#???????????? """????????????????????????? | | "#????????????" """????????????????????????? | | #?????????????" ????????????????????????? | | #????????????"" ????????????????????????? | | ##????????????"" "#???????????????????????? | | #???????????? ""????????????????????????? | | ###???????????" "?????????????????????????? | | ##??????????# #?????????????????????????? | | ######???### ###??#####????????????????? | | "#####X# #"###"""""????????????????? | | # """""" " "" ?????????????? | | ###"# ""% "" " ????##""? | | #?#### " " ?? " " | | ?????## @ " | | ??????# | | ??????#### | | ?????????### | | ???????????## | | ????????????#""" """""" ? | | ???????????##" ####?????? | | ???????????#"" ""##?????????""" | | ???????????#""" """##??????????#""" | | ???????????""" """##???????????#"""" | | ???????????""" ""#???????????##"" | | ??????????#"" ########??####"""" | | ??????????#""" ## ####""" | | ???????????"" """" | | ???????????#"" | | ???????????#"""" | | ????????????# | | ????????????#" " "" | | ????????????#"""" ""## ##""" " " " | | ????????????#"" ""#### ######""" "" | | ?????????????? """"##??# #????###"""" | | ?????????????""" """#???# #??????##### | | ?????????????? ""##???! ??????????? | | ??????????????"" """##???#" ?????????? | | ???????????????""" #?????#" ?????????? | +----------------------------------------------------+ Best States ------------- Heat Dissipation 28 Energy Generation 10 Energy Capacity 250 Matter Stores 300 Matter Capacity 300 Sight Range 16 Terrain Scan Density 10 Armor Coverage 150 Core Shielding 20 Evasion (%) 50 Targeting Accuracy 5 Recoil Reduction 2 Item Schematics ----------------- None Robot Schematics ------------------ None Fabricated ------------ Nothing Repaired ---------- Nothing Alien Tech Used ----------------- None Achievements -------------- None Challenges ------------ None Game ------ Seed ShadeBottomlessShotgun Manual? 0 Play Time 00:16:46 Cumulative 178.5 hours Start 2025.10.10 @ 11:57:09 End 2025.10.10 @ 12:11:16 Sessions 1 Manual Loads 0 Difficulty Rogue Special Mode None Game No. 548 Rogue 547 Adventurer 1 Explorer 0 Win Type - Total 0 Types 0/0/0/0/0/0/0/0/0/0 Lore% 61 Gallery% 58 Achievement% 44 Wizard Run 0 Options --------- Layout 1 ASCII 0 Keyboard 0 Movement Mouse Keybinds 0 Fullscreen 1 Font 24/Smallcaps Map View 50x35 Zoom Use 0% Tactical HUD 0 Map Filters NONE Filters NONE Steam 1 RUN: 4368aa07-e016-4269-a8c1-affc894c01db